[Event "*** Titled Tuesday 3|2 Blitz"]
[Site "Chess.com"]
[Date "2015.03.03"]
[Round "7"]
[White "Ar4uha"]
[Black "Malev212"]
[Result "1/2-1/2"]
[WhiteElo "2464"]
[BlackElo "2092"]
[TimeControl "180+2"]
[EndTime "12:33:47 PST"]
[Termination "Game drawn by repetition"]

1. e4 {[%clk 0:02:59.8]} 1... e5 {[%clk 0:02:57.6]} 2. Nf3 {[%clk 0:03:00.8]}
2... Nc6 {[%clk 0:02:47.4]} 3. d4 {[%clk 0:03:01.9]} 3... exd4 {[%clk
0:02:45.9]} 4. Bc4 {[%clk 0:03:03]} 4... Nf6 {[%clk 0:02:45.2]} 5. Ng5 {[%clk
0:03:03.7]} 5... Ne5 {[%clk 0:02:39.3]} 6. Bb3 {[%clk 0:03:04.2]} 6... h6 {[%clk
0:02:37.3]} 7. f4 {[%clk 0:03:05.7]} 7... hxg5 {[%clk 0:02:30.8]} 8. fxe5 {[%clk
0:03:07.2]} 8... Nxe4 {[%clk 0:02:26.7]} 9. Bxf7+ {[%clk 0:03:08.6]} 9... Kxf7
{[%clk 0:02:24.3]} 10. Qf3+ {[%clk 0:03:10.1]} 10... Kg8 {[%clk 0:02:00.8]} 11.
O-O {[%clk 0:03:11.3]} 11... Qe8 {[%clk 0:01:20.4]} 12. Qxe4 {[%clk 0:03:10.9]}
12... d6 {[%clk 0:01:19.3]} 13. Qxd4 {[%clk 0:02:59.9]} 13... Qxe5 {[%clk
0:01:15.7]} 14. Qxe5 {[%clk 0:02:42.9]} 14... dxe5 {[%clk 0:01:16.3]} 15. Bxg5
{[%clk 0:02:44]} 15... Bc5+ {[%clk 0:01:04.6]} 16. Kh1 {[%clk 0:02:44.6]} 16...
Bd7 {[%clk 0:01:05.3]} 17. Nc3 {[%clk 0:02:41.3]} 17... Bc6 {[%clk 0:01:05.8]}
18. Rae1 {[%clk 0:02:40.4]} 18... Re8 {[%clk 0:01:06.3]} 19. Ne4 {[%clk
0:02:40.1]} 19... Bb6 {[%clk 0:01:03.7]} 20. h4 {[%clk 0:02:14.1]} 20... a5
{[%clk 0:00:53.9]} 21. Kh2 {[%clk 0:02:13.2]} 21... Kh7 {[%clk 0:00:45.1]} 22.
g4 {[%clk 0:02:11]} 22... Rhf8 {[%clk 0:00:45.3]} 23. Rxf8 {[%clk 0:02:06.6]}
23... Rxf8 {[%clk 0:00:45.4]} 24. Kg3 {[%clk 0:02:04.3]} 24... a4 {[%clk
0:00:33.3]} 25. Bd2 {[%clk 0:01:47.2]} 25... Bxe4 {[%clk 0:00:31.1]} 26. Rxe4
{[%clk 0:01:47.1]} 26... Rf2 {[%clk 0:00:32.3]} 27. Bc3 {[%clk 0:01:40.3]} 27...
Rxc2 {[%clk 0:00:32.9]} 28. Rxa4 {[%clk 0:01:37.4]} 28... Bd4 {[%clk 0:00:29.9]}
29. Bxd4 {[%clk 0:01:15.2]} 29... exd4 {[%clk 0:00:30.6]} 30. Rxd4 {[%clk
0:01:16.2]} 30... Rxb2 {[%clk 0:00:31.4]} 31. a4 {[%clk 0:01:09.3]} 31... c5
{[%clk 0:00:28.7]} 32. Rc4 {[%clk 0:01:05.6]} 32... Rb4 {[%clk 0:00:27.5]} 33.
Rxc5 {[%clk 0:01:05.7]} 33... Rxa4 {[%clk 0:00:28]} 34. Rb5 {[%clk 0:01:07.2]}
34... g6 {[%clk 0:00:26.2]} 35. Rxb7+ {[%clk 0:01:06.9]} 35... Kg8 {[%clk
0:00:27.1]} 36. Re7 {[%clk 0:01:07.8]} 36... Kf8 {[%clk 0:00:27.1]} 37. Rc7
{[%clk 0:01:08.5]} 37... Kg8 {[%clk 0:00:28]} 38. Rd7 {[%clk 0:01:09.2]} 38...
Kf8 {[%clk 0:00:29.1]} 39. Kf3 {[%clk 0:01:10.7]} 39... Kg8 {[%clk 0:00:29.6]}
40. Re7 {[%clk 0:01:12.2]} 40... Rb4 {[%clk 0:00:28.9]} 41. Re4 {[%clk
0:01:13.5]} 41... Rb5 {[%clk 0:00:29]} 42. Ra4 {[%clk 0:01:14.4]} 42... Kg7
{[%clk 0:00:29.1]} 43. Ra7+ {[%clk 0:01:15]} 43... Kg8 {[%clk 0:00:28.9]} 44.
Kg3 {[%clk 0:01:13.6]} 44... Rc5 {[%clk 0:00:28.9]} 45. Rb7 {[%clk 0:01:14.1]}
45... Ra5 {[%clk 0:00:29.3]} 46. Rd7 {[%clk 0:01:14.8]} 46... Rb5 {[%clk
0:00:30]} 47. Kf3 {[%clk 0:01:16.3]} 47... Ra5 {[%clk 0:00:30.7]} 48. Re7 {[%clk
0:01:17.3]} 48... Rb5 {[%clk 0:00:30.6]} 49. Rc7 {[%clk 0:01:17]} 49... Kf8
{[%clk 0:00:30.9]} 50. Kf4 {[%clk 0:01:16.4]} 50... Ra5 {[%clk 0:00:30.7]} 51.
Rh7 {[%clk 0:01:13.3]} 51... Rb5 {[%clk 0:00:29.1]} 52. Rc7 {[%clk 0:01:10.3]}
52... Ra5 {[%clk 0:00:29.2]} 53. Rd7 {[%clk 0:01:08.9]} 53... Rb5 {[%clk
0:00:29.5]} 54. Ke4 {[%clk 0:01:09.6]} 54... Ra5 {[%clk 0:00:30]} 55. Rd5 {[%clk
0:01:09.4]} 55... Ra4+ {[%clk 0:00:29.5]} 56. Rd4 {[%clk 0:01:09.6]} 56... Ra5
{[%clk 0:00:30.1]} 57. Rd7 {[%clk 0:01:09.8]} 57... Ra4+ {[%clk 0:00:29.8]} 58.
Kf3 {[%clk 0:01:09.1]} 58... Rb4 {[%clk 0:00:26.5]} 59. Kg3 {[%clk 0:01:08.2]}
59... Ra4 {[%clk 0:00:25.6]} 60. Rb7 {[%clk 0:01:09.3]} 60... Rc4 {[%clk
0:00:25.6]} 61. Rd7 {[%clk 0:01:09.4]} 61... Ra4 {[%clk 0:00:26.4]} 62. Kf3
{[%clk 0:01:10.6]} 62... Rb4 {[%clk 0:00:26.4]} 63. Rc7 {[%clk 0:01:09.6]} 63...
Ra4 {[%clk 0:00:27.5]} 64. Rc5 {[%clk 0:01:10.6]} 64... Rb4 {[%clk 0:00:27.5]}
65. Re5 {[%clk 0:01:11.5]} 65... Kf7 {[%clk 0:00:25.9]} 66. Re4 {[%clk
0:01:12.9]} 66... Rb5 {[%clk 0:00:26]} 67. Kf4 {[%clk 0:01:13.6]} 67... Kf6
{[%clk 0:00:15.8]} 68. Ra4 {[%clk 0:01:10.9]} 68... Rc5 {[%clk 0:00:16]} 69.
Ra6+ {[%clk 0:01:09.3]} 69... Kf7 {[%clk 0:00:16.6]} 70. Rd6 {[%clk 0:01:10.9]}
70... Ra5 {[%clk 0:00:16.6]} 71. Rb6 {[%clk 0:01:10.1]} 71... Rc5 {[%clk
0:00:17]} 72. Rb7+ {[%clk 0:01:11.6]} 72... Kf8 {[%clk 0:00:15.3]} 73. Rd7
{[%clk 0:01:12.4]} 73... Ra5 {[%clk 0:00:15.3]} 74. Rd6 {[%clk 0:01:13.1]} 74...
Kf7 {[%clk 0:00:15.8]} 75. Rd7+ {[%clk 0:01:14.5]} 75... Kf8 {[%clk 0:00:16.4]}
76. Rc7 {[%clk 0:01:14.5]} 76... Rb5 {[%clk 0:00:16.5]} 77. Rc4 {[%clk
0:01:15.9]} 77... Kf7 {[%clk 0:00:16.3]} 78. Re4 {[%clk 0:01:17.5]} 78... Kf6
{[%clk 0:00:16.8]} 79. Ra4 {[%clk 0:01:17.9]} 79... Kf7 {[%clk 0:00:16.5]} 80.
Ra8 {[%clk 0:01:17.2]} 80... Rc5 {[%clk 0:00:13.9]} 81. Rh8 {[%clk 0:01:18.2]}
81... Kg7 {[%clk 0:00:14.4]} 82. Re8 {[%clk 0:01:19]} 82... Kf6 {[%clk
0:00:14.7]} 83. Re4 {[%clk 0:01:16.6]} 83... Ra5 {[%clk 0:00:14.7]} 84. Rb4
{[%clk 0:01:17.6]} 84... Rc5 {[%clk 0:00:14.6]} 85. Rb6+ {[%clk 0:01:18.6]}
85... Kf7 {[%clk 0:00:15.3]} 86. Rd6 {[%clk 0:01:20]} 86... Ra5 {[%clk
0:00:15.5]} 87. Ke4 {[%clk 0:01:21.3]} 87... Ra4+ {[%clk 0:00:14.8]} 88. Kf3
{[%clk 0:01:22.4]} 88... Rb4 {[%clk 0:00:15.1]} 89. Rd5 {[%clk 0:01:23]} 89...
Ra4 {[%clk 0:00:15.5]} 90. Re5 {[%clk 0:01:24.4]} 90... Rb4 {[%clk 0:00:16.1]}
91. Re4 {[%clk 0:01:25.8]} 91... Rb5 {[%clk 0:00:16.4]} 92. g5 {[%clk
0:01:27.2]} 92... Rb1 {[%clk 0:00:15.3]} 93. Ra4 {[%clk 0:01:26.8]} 93... Rh1
{[%clk 0:00:14.9]} 94. Ra7+ {[%clk 0:01:27.2]} 94... Kf8 {[%clk 0:00:14.7]} 95.
Ke4 {[%clk 0:01:26.9]} 95... Rf1 {[%clk 0:00:06.1]} 96. Ke5 {[%clk 0:01:27.7]}
96... Rf2 {[%clk 0:00:04.7]} 97. Ke6 {[%clk 0:01:28.9]} 97... Rf1 {[%clk
0:00:03.1]} 98. Rh7 {[%clk 0:01:29.8]} 98... Kg8 {[%clk 0:00:03.8]} 99. Rd7
{[%clk 0:01:30.3]} 99... Rf2 {[%clk 0:00:03.9]} 100. Ke7 {[%clk 0:01:30.6]}
100... Rf7+ {[%clk 0:00:03.4]} 101. Ke6 {[%clk 0:01:31.4]} 101... Rf4 {[%clk
0:00:04.2]} 102. Rc7 {[%clk 0:01:30.5]} 102... Rf3 {[%clk 0:00:05]} 103. Rd7
{[%clk 0:01:29.6]} 103... Rf2 {[%clk 0:00:05.9]} 104. Rd6 {[%clk 0:01:29.7]}
104... Kg7 {[%clk 0:00:05.3]} 105. Rd7+ {[%clk 0:01:30.2]} 105... Kg8 {[%clk
0:00:05.6]} 106. Rb7 {[%clk 0:01:31.7]} 106... Rf3 {[%clk 0:00:05.9]} 107. Ra7
{[%clk 0:01:32]} 107... Rf2 {[%clk 0:00:06.6]} 108. Re7 {[%clk 0:01:28.7]}
108... Rf3 {[%clk 0:00:06.6]} 109. Ke5 {[%clk 0:01:29.1]} 109... Rf2 {[%clk
0:00:06.2]} 110. Rd7 {[%clk 0:01:28.9]} 110... Rf1 {[%clk 0:00:06.9]} 111. Ke4
{[%clk 0:01:29.9]} 111... Rf2 {[%clk 0:00:07.2]} 112. Rd6 {[%clk 0:01:28.8]}
112... Kg7 {[%clk 0:00:07.5]} 113. Ke5 {[%clk 0:01:29.8]} 113... Rf5+ {[%clk
0:00:07.1]} 114. Ke6 {[%clk 0:01:29.1]} 114... Rf2 {[%clk 0:00:08]} 115. Rd7+
{[%clk 0:01:30.5]} 115... Kg8 {[%clk 0:00:08.2]} 116. Ke7 {[%clk 0:01:30.8]}
116... Kg7 {[%clk 0:00:08.3]} 117. Rd6 {[%clk 0:01:30.3]} 117... Re2+ {[%clk
0:00:08]} 118. Re6 {[%clk 0:01:31.1]} 118... Rf2 {[%clk 0:00:08.9]} 119. Ra6
{[%clk 0:01:28.1]} 119... Re2+ {[%clk 0:00:09.5]} 120. Kd6 {[%clk 0:01:28.3]}
120... Re4 {[%clk 0:00:08.1]} 121. Ra7+ {[%clk 0:01:26.8]} 121... Kg8 {[%clk
0:00:08.6]} 122. Kd5 {[%clk 0:01:28.5]} 122... Rxh4 {[%clk 0:00:08.2]} 123. Ke6
{[%clk 0:01:28.9]} 123... Rf4 {[%clk 0:00:08.7]} 124. Ra8+ {[%clk 0:01:28.2]}
124... Kg7 {[%clk 0:00:09.6]} 125. Ra7+ {[%clk 0:01:29.6]} 125... Kg8 {[%clk
0:00:10.6]} 126. Ra8+ {[%clk 0:01:31.2]} 126... Kg7 {[%clk 0:00:11.7]} 127. Ra7+
{[%clk 0:01:32.8]} 127... Kg8 {[%clk 0:00:12.7]} 128. Ra8+ {[%clk 0:01:34.4]}
128... Kg7 {[%clk 0:00:13.6]} 1/2-1/2

[Event "*** Titled Tuesday 3|2 Blitz"]
[Site "Chess.com"]
[Date "2015.03.03"]
[Round "8"]
[White "Rijeka1999"]
[Black "gumersindo"]
[Result "0-1"]
[WhiteElo "2231"]
[BlackElo "2115"]
[TimeControl "180+2"]
[EndTime "12:37:48 PST"]
[Termination "gumersindo won by checkmate"]

1. e4 {[%clk 0:03:00]} 1... e5 {[%clk 0:02:58.3]} 2. Nf3 {[%clk 0:03:00.5]} 2...
Nc6 {[%clk 0:02:59.7]} 3. Bc4 {[%clk 0:03:00.5]} 3... Bc5 {[%clk 0:03:00.3]} 4.
c3 {[%clk 0:03:01.1]} 4... Nf6 {[%clk 0:03:00.5]} 5. d3 {[%clk 0:03:01.8]} 5...
d6 {[%clk 0:02:58]} 6. O-O {[%clk 0:03:01.7]} 6... O-O {[%clk 0:02:58.2]} 7.
Nbd2 {[%clk 0:03:02.7]} 7... Be6 {[%clk 0:02:54.5]} 8. Re1 {[%clk 0:03:03.1]}
8... a6 {[%clk 0:02:54.4]} 9. Bb3 {[%clk 0:03:03.8]} 9... Re8 {[%clk 0:02:53.3]}
10. Nf1 {[%clk 0:03:04.6]} 10... Ne7 {[%clk 0:02:35.8]} 11. d4 {[%clk
0:02:59.9]} 11... exd4 {[%clk 0:02:33.9]} 12. cxd4 {[%clk 0:03:00.9]} 12... Ba7
{[%clk 0:02:35.1]} 13. Bg5 {[%clk 0:02:51.9]} 13... Ng6 {[%clk 0:02:20.1]} 14.
Bxe6 {[%clk 0:02:41.3]} 14... Rxe6 {[%clk 0:02:17.6]} 15. Rc1 {[%clk 0:02:25.7]}
15... h6 {[%clk 0:02:17.4]} 16. Bxf6 {[%clk 0:02:26.5]} 16... Rxf6 {[%clk
0:02:19.3]} 17. d5 {[%clk 0:02:23.8]} 17... Ne5 {[%clk 0:02:17.3]} 18. Nd4
{[%clk 0:02:20.9]} 18... Bb6 {[%clk 0:02:12.3]} 19. Ne3 {[%clk 0:02:17.6]} 19...
Rg6 {[%clk 0:02:08.7]} 20. Nf3 {[%clk 0:02:12.4]} 20... Qf6 {[%clk 0:02:04.6]}
21. Nxe5 {[%clk 0:02:09.9]} 21... Qxe5 {[%clk 0:02:05]} 22. Nc4 {[%clk
0:02:09.6]} 22... Qg5 {[%clk 0:01:59.5]} 23. Qd2 {[%clk 0:02:05.8]} 23... Qxg2#
{[%clk 0:01:59.4]} 0-1

[Event "*** Titled Tuesday 3|2 Blitz"]
[Site "Chess.com"]
[Date "2015.03.03"]
[Round "8"]
[White "megarompa"]
[Black "Fandorine"]
[Result "1-0"]
[WhiteElo "2677"]
[BlackElo "2569"]
[TimeControl "180+2"]
[EndTime "12:40:32 PST"]
[Termination "megarompa won on time"]

1. d4 {[%clk 0:03:00]} 1... Nf6 {[%clk 0:02:58]} 2. Nf3 {[%clk 0:03:01]} 2... g6
{[%clk 0:02:59.1]} 3. Bf4 {[%clk 0:03:01.1]} 3... Bg7 {[%clk 0:03:00.3]} 4. e3
{[%clk 0:03:00.9]} 4... O-O {[%clk 0:03:02]} 5. Be2 {[%clk 0:03:01.5]} 5... d6
{[%clk 0:03:03.1]} 6. h3 {[%clk 0:03:02.2]} 6... c5 {[%clk 0:03:04.5]} 7. O-O
{[%clk 0:02:49.8]} 7... Qb6 {[%clk 0:03:03.7]} 8. Qc1 {[%clk 0:02:45]} 8... cxd4
{[%clk 0:02:57.6]} 9. exd4 {[%clk 0:02:45.9]} 9... Nc6 {[%clk 0:02:55.3]} 10. c3
{[%clk 0:02:43.1]} 10... Bf5 {[%clk 0:02:56.5]} 11. Na3 {[%clk 0:02:38.9]} 11...
Rac8 {[%clk 0:02:57.4]} 12. Nc4 {[%clk 0:02:39.6]} 12... Qd8 {[%clk 0:02:57]}
13. Ne3 {[%clk 0:02:35.4]} 13... Be4 {[%clk 0:02:34]} 14. Qd2 {[%clk 0:02:28.3]}
14... e5 {[%clk 0:02:10.8]} 15. Bg5 {[%clk 0:02:23.6]} 15... h6 {[%clk 0:01:40]}
16. Bxf6 {[%clk 0:02:13.1]} 16... Qxf6 {[%clk 0:01:18.6]} 17. d5 {[%clk
0:01:39.5]} 17... Bxf3 {[%clk 0:01:01]} 18. Bxf3 {[%clk 0:01:38.5]} 18... Ne7
{[%clk 0:00:52.8]} 19. Bg4 {[%clk 0:01:16.6]} 19... Rc7 {[%clk 0:00:43.8]} 20.
g3 {[%clk 0:01:18.1]} 20... h5 {[%clk 0:00:43.8]} 21. Be2 {[%clk 0:01:18.8]} 1-0

[Event "*** Titled Tuesday 3|2 Blitz"]
[Site "Chess.com"]
[Date "2015.03.03"]
[Round "8"]
[White "michaelk123"]
[Black "Hafez_Bakr"]
[Result "1-0"]
[WhiteElo "1911"]
[BlackElo "1801"]
[TimeControl "180+2"]
[EndTime "12:40:44 PST"]
[Termination "michaelk123 won by resignation"]

1. e4 {[%clk 0:03:00]} 1... c5 {[%clk 0:02:58.9]} 2. Nf3 {[%clk 0:02:59.7]} 2...
d6 {[%clk 0:03:00.1]} 3. d4 {[%clk 0:03:01]} 3... cxd4 {[%clk 0:03:01.3]} 4.
Qxd4 {[%clk 0:03:02.7]} 4... Bd7 {[%clk 0:03:01.4]} 5. c4 {[%clk 0:03:02]} 5...
Nc6 {[%clk 0:03:02.2]} 6. Qe3 {[%clk 0:03:03]} 6... Nf6 {[%clk 0:03:02.8]} 7.
Nc3 {[%clk 0:03:04.3]} 7... g6 {[%clk 0:03:03]} 8. h3 {[%clk 0:03:04.7]} 8...
Bg7 {[%clk 0:03:03.8]} 9. Be2 {[%clk 0:03:06.1]} 9... a6 {[%clk 0:02:59.9]} 10.
O-O {[%clk 0:03:06.1]} 10... Rc8 {[%clk 0:02:59.3]} 11. Rb1 {[%clk 0:03:05.8]}
11... O-O {[%clk 0:02:49.5]} 12. b3 {[%clk 0:03:05.8]} 12... Re8 {[%clk
0:02:38.7]} 13. Bb2 {[%clk 0:03:06.4]} 13... Qa5 {[%clk 0:02:32.5]} 14. Rfd1
{[%clk 0:02:54.5]} 14... Ne5 {[%clk 0:02:05.7]} 15. Nxe5 {[%clk 0:02:50.9]}
15... dxe5 {[%clk 0:02:06.5]} 16. Nd5 {[%clk 0:02:46.1]} 16... Bc6 {[%clk
0:01:56.7]} 17. Bxe5 {[%clk 0:02:42.7]} 17... Nxd5 {[%clk 0:01:53.2]} 18. exd5
{[%clk 0:02:42.9]} 18... Bxe5 {[%clk 0:01:52.2]} 19. Qxe5 {[%clk 0:02:42.9]}
19... Bd7 {[%clk 0:01:53]} 20. Qb2 {[%clk 0:01:45]} 20... b5 {[%clk 0:01:42.1]}
21. b4 {[%clk 0:01:39.3]} 21... Qc7 {[%clk 0:01:34.7]} 22. c5 {[%clk 0:01:40.3]}
22... Bf5 {[%clk 0:01:31.3]} 23. Rbc1 {[%clk 0:01:38.7]} 23... h5 {[%clk
0:01:31.6]} 24. Bd3 {[%clk 0:01:35.9]} 24... Bxd3 {[%clk 0:01:21.5]} 25. Rxd3
{[%clk 0:01:37.8]} 25... Qf4 {[%clk 0:01:21.6]} 26. Re1 {[%clk 0:01:33.2]} 26...
f5 {[%clk 0:01:13.8]} 27. Rde3 {[%clk 0:01:21.1]} 27... Qg5 {[%clk 0:01:12.6]}
28. d6 {[%clk 0:01:16.1]} 28... f4 {[%clk 0:01:02.8]} 29. Re5 {[%clk 0:01:16.8]}
29... Qf6 {[%clk 0:01:03.4]} 30. d7 {[%clk 0:01:17.9]} 30... Rcd8 {[%clk
0:00:59]} 31. dxe8=Q+ {[%clk 0:01:18.5]} 31... Rxe8 {[%clk 0:00:59.9]} 32. Qe2
{[%clk 0:01:19.5]} 32... Kf7 {[%clk 0:00:55.1]} 33. Qf3 {[%clk 0:01:19.3]} 33...
g5 {[%clk 0:00:54.6]} 34. Re6 {[%clk 0:01:17.3]} 34... Qh8 {[%clk 0:00:53.4]}
35. Qd5 {[%clk 0:01:17]} 35... Kf8 {[%clk 0:00:53]} 36. Qxg5 {[%clk 0:01:13]}
1-0

[Event "*** Titled Tuesday 3|2 Blitz"]
[Site "Chess.com"]
[Date "2015.03.03"]
[Round "8"]
[White "GGuseinov"]
[Black "zmaj23"]
[Result "1/2-1/2"]
[WhiteElo "2569"]
[BlackElo "2360"]
[TimeControl "180+2"]
[EndTime "12:41:13 PST"]
[Termination "Game drawn by agreement"]

1. e4 {[%clk 0:03:00]} 1... c5 {[%clk 0:02:57.8]} 2. Nf3 {[%clk 0:03:00.9]} 2...
d6 {[%clk 0:02:58.9]} 3. d4 {[%clk 0:03:01.1]} 3... cxd4 {[%clk 0:03:00.8]} 4.
Nxd4 {[%clk 0:03:01.7]} 4... Nf6 {[%clk 0:03:02.1]} 5. Nc3 {[%clk 0:03:02.8]}
5... a6 {[%clk 0:03:03.7]} 6. Bg5 {[%clk 0:03:03.8]} 6... e6 {[%clk 0:03:02.8]}
7. f4 {[%clk 0:03:04.5]} 7... h6 {[%clk 0:03:02.5]} 8. Bh4 {[%clk 0:03:03.8]}
8... Qb6 {[%clk 0:03:03.6]} 9. Qd2 {[%clk 0:02:59.5]} 9... Qxb2 {[%clk
0:03:00.5]} 10. Nb3 {[%clk 0:02:58.8]} 10... Be7 {[%clk 0:02:48.3]} 11. Bf2
{[%clk 0:02:59.7]} 11... Qa3 {[%clk 0:02:41.7]} 12. Be2 {[%clk 0:02:57.4]} 12...
Nc6 {[%clk 0:02:40.2]} 13. O-O {[%clk 0:02:56.9]} 13... Bd7 {[%clk 0:02:35.4]}
14. Kh1 {[%clk 0:02:51]} 14... h5 {[%clk 0:02:26.8]} 15. Bd3 {[%clk 0:02:43.6]}
15... h4 {[%clk 0:02:10.3]} 16. Rfe1 {[%clk 0:02:21.9]} 16... h3 {[%clk
0:02:07.3]} 17. g3 {[%clk 0:02:20]} 17... Ng4 {[%clk 0:02:05]} 18. Bg1 {[%clk
0:02:17.8]} 18... Bf6 {[%clk 0:02:01.8]} 19. e5 {[%clk 0:02:15.3]} 19... Be7
{[%clk 0:01:51.5]} 20. Ne4 {[%clk 0:02:07.2]} 20... dxe5 {[%clk 0:01:45]} 21.
Nec5 {[%clk 0:02:07.9]} 21... O-O-O {[%clk 0:01:36.4]} 22. Qe2 {[%clk
0:02:04.7]} 22... f5 {[%clk 0:01:31.8]} 23. Rab1 {[%clk 0:02:02.2]} 23... Nb4
{[%clk 0:01:25.7]} 24. Nxd7 {[%clk 0:01:58.4]} 24... Rxd7 {[%clk 0:01:24.2]} 25.
Bc4 {[%clk 0:01:56.8]} 25... Rh6 {[%clk 0:01:15.8]} 26. Nc5 {[%clk 0:01:29.6]}
26... Rc7 {[%clk 0:00:49.2]} 27. Nxe6 {[%clk 0:01:30.6]} 27... Qa4 {[%clk
0:00:44.8]} 1/2-1/2

[Event "*** Titled Tuesday 3|2 Blitz"]
[Site "Chess.com"]
[Date "2015.03.03"]
[Round "8"]
[White "1stSecond"]
[Black "Novak_Pezelj"]
[Result "1-0"]
[WhiteElo "2372"]
[BlackElo "2363"]
[TimeControl "180+2"]
[EndTime "12:41:16 PST"]
[Termination "1stSecond won by resignation"]

1. d4 {[%clk 0:02:59.3]} 1... e6 {[%clk 0:02:58.3]} 2. Nf3 {[%clk 0:02:59.8]}
2... Nf6 {[%clk 0:02:57.7]} 3. c4 {[%clk 0:03:00.6]} 3... Bb4+ {[%clk
0:02:57.8]} 4. Nbd2 {[%clk 0:03:00.4]} 4... O-O {[%clk 0:02:56.6]} 5. g3 {[%clk
0:03:00.5]} 5... d6 {[%clk 0:02:55.4]} 6. Bg2 {[%clk 0:03:01.1]} 6... Nbd7
{[%clk 0:02:53.2]} 7. O-O {[%clk 0:03:01.5]} 7... Bxd2 {[%clk 0:02:54.1]} 8.
Bxd2 {[%clk 0:03:01.7]} 8... e5 {[%clk 0:02:54]} 9. dxe5 {[%clk 0:03:02.6]} 9...
dxe5 {[%clk 0:02:51.4]} 10. Bc3 {[%clk 0:03:03.4]} 10... Qe7 {[%clk 0:02:51.2]}
11. Qc2 {[%clk 0:03:02.9]} 11... Ne8 {[%clk 0:02:30.1]} 12. Rad1 {[%clk
0:03:02.8]} 12... Nd6 {[%clk 0:02:22.1]} 13. c5 {[%clk 0:02:59.7]} 13... Nb5
{[%clk 0:02:18.4]} 14. b4 {[%clk 0:02:56.1]} 14... a5 {[%clk 0:02:03.5]} 15. Bb2
{[%clk 0:02:31.6]} 15... axb4 {[%clk 0:01:51]} 16. c6 {[%clk 0:02:32.6]} 16...
Qc5 {[%clk 0:01:49.6]} 17. Qxc5 {[%clk 0:02:30.4]} 17... Nxc5 {[%clk 0:01:51.5]}
18. Bxe5 {[%clk 0:02:25.1]} 18... Rxa2 {[%clk 0:01:49.8]} 19. Nd4 {[%clk
0:02:25.7]} 19... Nc3 {[%clk 0:01:46.6]} 20. Bxc7 {[%clk 0:02:15.6]} 20... Re8
{[%clk 0:01:26.1]} 21. Bd6 {[%clk 0:02:07.2]} 21... N3e4 {[%clk 0:01:26.5]} 22.
Bxc5 {[%clk 0:02:07.4]} 22... Nxc5 {[%clk 0:01:26.1]} 23. cxb7 {[%clk
0:01:59.4]} 23... Bxb7 {[%clk 0:01:27.1]} 24. Bxb7 {[%clk 0:02:01]} 24... Nxb7
{[%clk 0:01:28]} 25. Rb1 {[%clk 0:02:02.9]} 25... Ra4 {[%clk 0:01:16.3]} 26.
Rfc1 {[%clk 0:02:00.3]} 26... Nd6 {[%clk 0:01:06.8]} 27. Rc6 {[%clk 0:01:57.4]}
27... Ne4 {[%clk 0:01:01.5]} 28. Rb6 {[%clk 0:01:56.3]} 28... b3 {[%clk
0:00:59.2]} 29. Nxb3 {[%clk 0:01:52.9]} 29... Nc3 {[%clk 0:00:57.9]} 30. Rb2
{[%clk 0:01:54.1]} 30... g5 {[%clk 0:00:46]} 31. e3 {[%clk 0:01:52.6]} 31... Nd1
{[%clk 0:00:38.5]} 32. Rd2 {[%clk 0:01:49.5]} 32... Nc3 {[%clk 0:00:38.2]} 33.
Kg2 {[%clk 0:01:47.3]} 33... Ne4 {[%clk 0:00:36.8]} 34. Rc2 {[%clk 0:01:48.1]}
34... g4 {[%clk 0:00:31.7]} 35. Nd4 {[%clk 0:01:48.2]} 35... Ra1 {[%clk
0:00:19.3]} 36. Nf5 {[%clk 0:01:44.9]} 36... h5 {[%clk 0:00:20.6]} 37. h3 {[%clk
0:01:43.8]} 37... gxh3+ {[%clk 0:00:18.1]} 38. Kxh3 {[%clk 0:01:44.6]} 38... f6
{[%clk 0:00:18.4]} 39. Rb7 {[%clk 0:01:43.7]} 39... Re5 {[%clk 0:00:15.8]} 40.
Rc8+ {[%clk 0:01:42.7]} 1-0

[Event "*** Titled Tuesday 3|2 Blitz"]
[Site "Chess.com"]
[Date "2015.03.03"]
[Round "8"]
[White "destroyer305"]
[Black "Irochka83"]
[Result "1-0"]
[WhiteElo "2203"]
[BlackElo "2254"]
[TimeControl "180+2"]
[EndTime "12:41:21 PST"]
[Termination "destroyer305 won on time"]

1. e4 {[%clk 0:02:59.9]} 1... e6 {[%clk 0:02:42.5]} 2. Qe2 {[%clk 0:02:59.9]}
2... c5 {[%clk 0:02:39.4]} 3. Nf3 {[%clk 0:02:59.8]} 3... Nc6 {[%clk 0:02:40.3]}
4. c3 {[%clk 0:03:00.6]} 4... Nf6 {[%clk 0:02:32.5]} 5. g3 {[%clk 0:03:00.9]}
5... d6 {[%clk 0:02:29.1]} 6. Bg2 {[%clk 0:03:02.2]} 6... Be7 {[%clk 0:02:30]}
7. O-O {[%clk 0:03:03.7]} 7... O-O {[%clk 0:02:31.1]} 8. Rd1 {[%clk 0:03:04]}
8... Bd7 {[%clk 0:02:27.4]} 9. d4 {[%clk 0:03:04.9]} 9... cxd4 {[%clk
0:02:28.5]} 10. cxd4 {[%clk 0:03:05.5]} 10... d5 {[%clk 0:02:30.1]} 11. e5
{[%clk 0:03:01.7]} 11... Ne4 {[%clk 0:02:31.6]} 12. Nbd2 {[%clk 0:02:55.8]}
12... f5 {[%clk 0:02:20.6]} 13. exf6 {[%clk 0:02:52.9]} 13... Nxf6 {[%clk
0:02:18.5]} 14. Nb3 {[%clk 0:02:31.1]} 14... b6 {[%clk 0:02:08.3]} 15. Bf4
{[%clk 0:02:05.3]} 15... Ne4 {[%clk 0:02:07.1]} 16. Nbd2 {[%clk 0:02:00.7]}
16... Nd6 {[%clk 0:01:51.6]} 17. Rac1 {[%clk 0:01:54.4]} 17... g5 {[%clk
0:01:07.5]} 18. Nxg5 {[%clk 0:01:25.7]} 18... Bxg5 {[%clk 0:00:45.9]} 19. Bxd6
{[%clk 0:01:25.6]} 19... Nxd4 {[%clk 0:00:46.9]} 20. Qg4 {[%clk 0:01:22.1]}
20... e5 {[%clk 0:00:48.2]} 21. Bxd5+ {[%clk 0:01:18.4]} 21... Kh8 {[%clk
0:00:45.4]} 22. Qh5 {[%clk 0:01:13]} 22... Qf6 {[%clk 0:00:39.6]} 23. Ne4 {[%clk
0:01:04.6]} 23... Qf3 {[%clk 0:00:27.7]} 24. Bxe5+ {[%clk 0:00:58.3]} 24... Bf6
{[%clk 0:00:18.5]} 25. Nxf6 {[%clk 0:00:41.7]} 25... Ne2+ {[%clk 0:00:06.4]} 26.
Kf1 {[%clk 0:00:42.8]} 1-0